fUSD/lending_fUSD_20260408
["ID","MTS","AMOUNT","RATE_DAILY","PERIOD"]
[420052478,1775634646674,-150.0,0.00013973,2]
[420052480,1775634646684,-150.0,0.00013973,2]
[420052482,1775634646694,-150.0,0.00013973,2]
[420052485,1775634646704,-166.66,0.00013973,2]
[420052487,1775634646715,-6730.30897899,0.00013986,2]
[420052489,1775634646724,-150.0,0.00014005,2]
[420052491,1775634646734,-150.0,0.00014005,2]
[420052493,1775634646744,-150.0,0.00014005,2]
[420052495,1775634646753,-150.11484194,0.00014005,2]
[420052497,1775634646762,-150.12907206,0.00014005,2]
[420052499,1775634646772,-150.0,0.00014005,2]
[420052501,1775634646782,-150.0,0.00014005,2]
[420052503,1775634646791,-150.0,0.00014005,2]
[420052505,1775634646801,-150.0,0.00014005,2]
[420052507,1775634646811,-150.0,0.00014005,2]
[420052509,1775634646822,-150.13966067,0.00014005,2]
[420052511,1775634646832,-150.0,0.00014005,2]
[420052513,1775634646842,-150.0,0.00014005,2]
[420052515,1775634646852,-150.0,0.00014005,2]
[420052517,1775634646863,-150.0,0.00014005,2]
[420052519,1775634646873,-4733.74989347,0.00014006,2]
[420052521,1775634646883,-187.78006525,0.00014013,2]
[420052523,1775634646892,-200.0,0.00014013,2]
[420052525,1775634646902,-1328.27659266,0.00014013,2]
[420052527,1775634646912,-799.54513345,0.00014013,2]
[420052529,1775634646922,-150.0,0.00014029,2]
[420052531,1775634646931,-150.0,0.00014032,2]
[420052533,1775634646941,-150.0,0.00014037,2]
[420052535,1775634646951,-150.0,0.00014042,2]
[420052537,1775634646960,-150.0,0.00014045,2]
[420052539,1775634646969,-150.0,0.00014046,2]
[420052541,1775634646980,-150.0,0.00014052,2]
[420052543,1775634646990,-150.0,0.00014059,2]
[420052545,1775634646999,-447.28942319,0.00014061,2]
[420052547,1775634647009,-150.0,0.00014068,2]
[420052549,1775634647018,-150.0,0.00014075,2]
[420052551,1775634647027,-150.0,0.00014078,2]
[420052553,1775634647038,-150.0,0.0001408,2]
[420052555,1775634647047,-150.0,0.0001408,2]
[420052557,1775634647057,-150.0,0.00014085,2]
[420052559,1775634647068,-150.0,0.00014086,2]
[420052561,1775634647078,-150.0,0.00014087,2]
[420052563,1775634647089,-150.0,0.00014098,2]
[420052565,1775634647098,-150.0,0.00014099,2]
[420052567,1775634647109,-166.66,0.0001411,2]
[420052569,1775634647118,-150.0,0.00014113,2]
[420052571,1775634647128,-150.0,0.00014114,2]
[420052573,1775634647137,-48678.52556025,0.00014117,2]
[420052575,1775634647147,-150.0,0.00014122,2]
[420052577,1775634647156,-150.0,0.00014125,2]
[420052579,1775634647166,-150.0,0.00014125,2]
[420052581,1775634647176,-150.0,0.00014128,2]
[420052583,1775634647185,-150.0,0.0001413,2]
[420052585,1775634647195,-150.0,0.0001414,2]
[420052587,1775634647205,-329.418741,0.0001414,2]
[420052589,1775634647214,-254.770919,0.0001414,7]
[420052591,1775634647223,-441.906746,0.0001414,7]
[420052593,1775634647233,-150.0,0.00014145,2]
[420052595,1775634647243,-150.0,0.0001415,2]
[420052597,1775634647252,-150.0,0.00014154,2]
[420052599,1775634647263,-150.0,0.00014154,2]
[420052601,1775634647273,-150.0,0.00014161,2]
[420052603,1775634647282,-150.0,0.00014165,2]
[420052605,1775634647292,-150.0,0.00014166,2]
[420052607,1775634647301,-150.0,0.00014168,2]
[420052609,1775634647311,-150.0,0.00014169,2]
[420052611,1775634647321,-150.0,0.00014186,2]
[420052613,1775634647330,-150.0,0.00014191,2]
[420052615,1775634647340,-150.0,0.00014192,2]
[420052617,1775634647350,-150.0,0.00014193,2]
[420052619,1775634647361,-900.0,0.00014193,2]
[420052620,1775634647371,-900.0,0.00014193,2]
[420052622,1775634647381,-900.0,0.00014193,2]
[420052625,1775634647392,-900.0,0.00014193,2]
[420052659,1775634647719,-900.0,0.00014193,2]
[420052661,1775634647729,-900.0,0.00014193,2]
[420052663,1775634647739,-900.0,0.00014193,2]
[420052665,1775634647749,-900.0,0.00014193,2]
[420052667,1775634647759,-900.0,0.00014193,2]
[420052669,1775634647770,-417.0,0.00014193,2]
[420052671,1775634647781,-150.0,0.00014205,2]
[420052673,1775634647790,-150.0,0.0001421,2]
[420052675,1775634647800,-150.0,0.00014215,2]
[420052678,1775634647810,-150.0,0.0001422,2]
[420052680,1775634647820,-150.0,0.00014223,2]
[420052682,1775634647830,-150.0,0.00014223,2]
[420052684,1775634647840,-150.0,0.00014228,2]
[420052686,1775634647849,-150.0,0.00014228,2]
[420052688,1775634647859,-150.0,0.00014238,2]
[420052690,1775634647870,-150.0,0.00014245,2]
[420052692,1775634647881,-150.0,0.00014245,2]
[420052694,1775634647891,-600.0,0.00014245,2]
[420052696,1775634647900,-166.66,0.00014247,2]
[420052698,1775634647911,-150.0,0.00014247,2]
[420052700,1775634647921,-150.0,0.00014247,2]
[420052702,1775634647931,-1000.0,0.00014247,2]
[420052704,1775634647941,-1000.0,0.00014247,2]
[420052706,1775634647951,-1000.0,0.00014247,2]
[420052708,1775634647962,-1000.0,0.00014247,2]
[420052711,1775634647972,-1000.0,0.00014247,2]
[420052713,1775634647982,-1000.0,0.00014247,2]
[420052715,1775634647991,-1000.0,0.00014247,2]
[420052717,1775634648001,-673.33118241,0.00014247,2]
[420052719,1775634648011,-1000.0,0.00014247,2]
[420052721,1775634648021,-1000.0,0.00014247,2]
[420052723,1775634648030,-1000.0,0.00014247,2]
[420052725,1775634648040,-1000.0,0.00014247,2]
[420052727,1775634648049,-1000.0,0.00014247,2]
[420052728,1775634648058,-1000.0,0.00014247,2]
[420052730,1775634648069,-501.75332835,0.00014247,2]
[420052732,1775634648080,-230.66718579,0.00014247,2]
[420052735,1775634648090,-242.46089406,0.00014247,2]
[420052737,1775634648101,-1000.0,0.00014247,2]
[420052739,1775634648111,-1000.0,0.00014247,2]
[420052741,1775634648121,-945.29859118,0.00014247,2]
[420052742,1775634648132,-1000.0,0.00014247,2]
[420052743,1775634648142,-1000.0,0.00014247,2]
[420052744,1775634648153,-1144.24089955,0.00014247,2]
[420052745,1775634648165,-500.0,0.00014247,2]
[420052746,1775634648175,-290.88257095,0.00014247,2]
[420052747,1775634648185,-1000.0,0.00014247,2]
[420052748,1775634648195,-150.0,0.00014247,2]
[420052749,1775634648205,-150.0,0.00014251,2]
[420052750,1775634648214,-150.0,0.00014254,2]
[420052751,1775634648224,-150.0,0.00014259,2]
[420052752,1775634648235,-150.0,0.00014261,2]
[420052753,1775634648245,-2000.0,0.00014274,2]
[420052754,1775634648255,-2000.0,0.00014274,2]
[420052755,1775634648265,-2000.0,0.00014274,2]
[420052756,1775634648274,-2000.0,0.00014274,2]
[420052757,1775634648284,-2000.0,0.00014274,2]
[420052758,1775634648294,-2000.0,0.00014274,2]
[420052759,1775634648305,-2000.0,0.00014274,2]
[420052760,1775634648315,-2000.0,0.00014274,2]
[420052761,1775634648325,-2000.0,0.00014274,2]
[420052762,1775634648334,-2000.0,0.00014274,2]
[420052763,1775634648345,-150.0,0.00014274,2]
[420052764,1775634648356,-150.0,0.00014284,2]
[420052765,1775634648366,-150.0,0.00014285,2]
[420052766,1775634648376,-150.0,0.00014286,2]
[420052768,1775634648387,-150.0,0.00014292,2]
[420052770,1775634648398,-150.0,0.00014295,2]
[420052772,1775634648408,-150.0,0.00014301,2]
[420052774,1775634648418,-150.0,0.00014302,2]
[420052776,1775634648427,-150.0,0.00014302,2]
[420052778,1775634648437,-150.0,0.00014307,2]
[420052780,1775634648446,-150.0,0.00014317,2]
[420052782,1775634648456,-150.0,0.00014325,2]
[420052783,1775634648466,-150.0,0.00014327,2]
[420052784,1775634648475,-150.0,0.00014331,2]
[420052785,1775634648485,-150.0,0.00014331,2]
[420052786,1775634648495,-150.0,0.00014333,2]
[420052787,1775634648504,-214.48,0.00014347,2]
[420052788,1775634648513,-150.0,0.00014348,2]
[420052789,1775634648523,-150.0,0.00014354,2]
[420052790,1775634648533,-150.0,0.00014354,2]
[420052791,1775634648542,-150.0,0.00014365,2]
[420052792,1775634648552,-150.0,0.00014365,2]
[420052793,1775634648561,-150.0,0.00014367,2]
[420052794,1775634648570,-150.0,0.00014374,2]
[420052795,1775634648580,-150.0,0.00014376,2]
[420052796,1775634648590,-150.0,0.00014376,2]
[420052797,1775634648600,-150.0,0.00014377,2]
[420052798,1775634648610,-150.0,0.00014379,2]
[420052799,1775634648620,-150.0,0.00014381,2]
[420052800,1775634648631,-166.66,0.00014384,2]
[420052801,1775634648641,-1000.0,0.00014384,2]
[420052802,1775634648651,-150.0,0.00014395,2]
[420052803,1775634648661,-150.0,0.000144,2]
[420052804,1775634648671,-150.0,0.00014404,2]
[420052805,1775634648681,-150.0,0.00014404,2]
[420052806,1775634648691,-150.0,0.00014408,2]
[420052807,1775634648700,-150.0,0.0001441,2]
[420052808,1775634648710,-150.0,0.00014415,2]
[420052809,1775634648720,-150.0,0.00014424,2]
[420052810,1775634648730,-150.0,0.00014435,2]
[420052811,1775634648739,-150.0,0.0001444,2]
[420052812,1775634648750,-150.0,0.00014441,2]
[420052813,1775634648759,-150.0,0.00014444,2]
[420052814,1775634648769,-150.0,0.00014447,2]
[420052815,1775634648779,-150.0,0.0001445,2]
[420052816,1775634648789,-150.0,0.0001445,2]
[420052817,1775634648798,-150.0,0.00014456,2]
[420052818,1775634648808,-150.0,0.00014462,2]
[420052819,1775634648818,-150.0,0.0001447,2]
[420052820,1775634648827,-150.0,0.00014472,2]
[420052821,1775634648837,-150.0,0.00014476,2]
[420052822,1775634648847,-150.0,0.00014484,2]
[420052823,1775634648857,-150.0,0.00014484,2]
[420052824,1775634648869,-150.0,0.00014488,2]
[420052825,1775634648878,-150.0,0.00014493,2]
[420052826,1775634648889,-150.0,0.00014497,2]
[420052827,1775634648899,-150.0,0.00014503,2]
[420052828,1775634648908,-150.0,0.00014512,2]
[420052829,1775634648917,-697.87652131,0.00014515,2]
[420052830,1775634648927,-1000.0,0.00014515,2]
[420052831,1775634648937,-150.0,0.00014515,2]
[420052832,1775634648946,-150.0,0.00014516,2]
[420052833,1775634648956,-150.0,0.00014524,2]
[420052834,1775634648965,-150.0,0.00014524,2]
[420052835,1775634648975,-150.0,0.00014524,2]
[420052836,1775634648984,-150.0,0.00014535,2]
[420052837,1775634648994,-150.0,0.00014538,2]
[420052838,1775634649004,-150.0,0.0001454,2]
[420052839,1775634649014,-150.0,0.00014542,2]
[420052840,1775634649024,-150.0,0.00014548,2]
[420052841,1775634649034,-1600.0,0.00014548,2]
[420052842,1775634649044,-194.72792766,0.00014561,2]
[420052843,1775634649054,-200.0,0.00014561,2]
[420052844,1775634649065,-1377.42282659,0.00014561,2]
[420052845,1775634649075,-829.12830338,0.00014561,2]
[420052846,1775634649084,-150.0,0.00014563,2]
[420052847,1775634649093,-150.0,0.00014564,2]
[420052848,1775634649103,-150.0,0.00014566,2]
[420052849,1775634649113,-150.0,0.00014569,2]
[420052850,1775634649123,-150.0,0.00014579,2]
[420052851,1775634649133,-150.0,0.00014585,2]
[420052852,1775634649142,-150.0,0.00014586,2]
[420052853,1775634649152,-150.0,0.00014596,2]
[420052854,1775634649162,-150.0,0.00014597,2]
[420052855,1775634649172,-150.0,0.00014598,2]
[420052856,1775634649181,-150.0,0.00014598,2]
[420052857,1775634649191,-255.5987,0.000146,2]
[420052858,1775634649201,-150.0,0.00014604,2]
[420052859,1775634649211,-150.0,0.00014604,2]
[420052860,1775634649220,-150.0,0.00014609,2]
[420052861,1775634649230,-150.0,0.0001462,2]
[420052862,1775634649240,-150.0,0.00014621,2]
[420052863,1775634649250,-150.0,0.00014623,2]
[420052864,1775634649260,-150.0,0.00014628,2]
[420052865,1775634649269,-150.0,0.00014633,2]
[420052866,1775634649278,-150.0,0.00014644,2]
[420052867,1775634649288,-150.0,0.00014649,2]
[420052868,1775634649298,-150.0,0.00014656,2]
[420052869,1775634649308,-150.0,0.00014657,2]
[420052870,1775634649318,-150.0,0.00014659,2]
[420052871,1775634649327,-150.0,0.00014661,2]
[420052872,1775634649337,-208.85233043,0.0001467,4]
[420052873,1775634649348,-150.0,0.00014672,2]
[420052874,1775634649358,-150.0,0.00014672,2]
[420052875,1775634649368,-150.0,0.00014676,2]
[420052876,1775634649378,-150.0,0.00014679,2]
[420052877,1775634649388,-150.0,0.00014684,2]
[420052878,1775634649398,-150.0,0.0001469,2]
[420052879,1775634649408,-150.0,0.00014693,2]
[420052880,1775634649419,-150.0,0.00014702,2]
[420052881,1775634649429,-150.0,0.00014702,2]
[420052882,1775634649439,-150.0,0.00014703,2]
[420052883,1775634649449,-150.0,0.00014721,2]
[420052884,1775634649459,-150.0,0.00014724,2]
[420052885,1775634649469,-150.0,0.00014724,2]
[420052886,1775634649479,-150.0,0.00014725,2]
[420052887,1775634649489,-165.06,0.00014729,15]
[420052888,1775634649499,-150.0,0.00014729,2]
[420052889,1775634649508,-150.0,0.0001473,2]
[420052890,1775634649519,-150.0,0.00014743,2]
[420052891,1775634649529,-150.0,0.00014747,2]
[420052892,1775634649539,-150.0,0.00014747,2]
[420052893,1775634649549,-150.0,0.00014749,2]
[420052894,1775634649559,-150.0,0.00014752,2]
[420052895,1775634649569,-150.0,0.00014757,2]
[420052896,1775634649579,-150.0,0.00014764,2]
[420052897,1775634649589,-150.0,0.00014765,2]
[420052898,1775634649599,-150.0,0.00014772,2]
[420052899,1775634649609,-150.0,0.00014784,2]
[420052900,1775634649618,-150.0,0.00014784,2]
[420052901,1775634649628,-150.0,0.00014784,2]
[420052902,1775634649638,-150.0,0.00014784,2]
[420052903,1775634649648,-150.0,0.00014784,2]
[420052904,1775634649658,-150.0,0.00014784,2]
[420052905,1775634649668,-1000.0,0.00014788,2]
[420052906,1775634649678,-250.0,0.00014795,2]
[420052907,1775634649688,-314.26887436,0.00014795,2]
[420052908,1775634649697,-518.40309967,0.00014795,2]
[420052909,1775634649707,-1500.0,0.00014795,2]
[420052910,1775634649717,-1500.0,0.00014795,2]
[420052911,1775634649726,-1500.0,0.00014795,2]
[420052912,1775634649736,-1500.0,0.00014795,2]
[420052913,1775634649746,-382.1111067,0.00014795,2]
[420052914,1775634649755,-1500.0,0.00014795,2]
[420052915,1775634649766,-1500.0,0.00014795,2]
[420052916,1775634649775,-1500.0,0.00014795,2]
[420052917,1775634649785,-501.00461758,0.00014795,2]
[420052918,1775634649795,-1500.0,0.00014795,2]
[420052919,1775634649806,-1070.5730129,0.00014795,2]
[420052920,1775634649815,-1500.0,0.00014795,2]
[420052921,1775634649825,-1500.0,0.00014795,2]
[420052922,1775634649835,-150.0,0.00014795,2]
[420052923,1775634649844,-150.0,0.00014802,2]
[420052924,1775634649855,-150.0,0.00014804,2]
[420052925,1775634649864,-150.0,0.0001481,2]
[420052926,1775634649874,-150.0,0.00014815,2]
[420052927,1775634649884,-150.0,0.00014818,2]
[420052928,1775634649894,-150.0,0.00014821,2]
[420052929,1775634649905,-150.0,0.00014821,2]
[420052930,1775634649914,-150.0,0.00014825,2]
[420052931,1775634649924,-372.32,0.00014836,4]
[420052932,1775634649934,-150.0,0.00014837,2]
[420052933,1775634649944,-150.0,0.00014838,2]
[420052934,1775634649954,-155.32006583,0.00014839,2]
[420052935,1775634649964,-150.0,0.00014842,2]
[420052936,1775634649974,-150.0,0.00014843,2]
[420052937,1775634649984,-150.0,0.00014843,2]
[420052938,1775634649994,-150.0,0.00014846,2]
[420052939,1775634650004,-150.0,0.00014864,2]
[420052940,1775634650013,-150.0,0.00014865,2]
[420052941,1775634650023,-150.0,0.00014865,2]
[420052942,1775634650033,-150.0,0.00014874,2]
[420052943,1775634650043,-150.0,0.00014877,2]
[420052944,1775634650053,-150.0,0.00014883,2]
[420052945,1775634650063,-150.0,0.00014888,2]
[420052946,1775634650072,-150.0,0.00014891,2]
[420052947,1775634650082,-150.0,0.00014895,2]
[420052948,1775634650091,-150.0,0.00014895,2]
[420052949,1775634650102,-150.0,0.00014906,2]
[420052950,1775634650243,-150.0,0.00014908,2]
[420052951,1775634650252,-150.0,0.0001491,2]
[420052952,1775634650262,-150.0,0.00014911,2]
[420052953,1775634650272,-150.0,0.00014918,2]
[420052954,1775634650282,-150.0,0.00014923,2]
[420052955,1775634650292,-1270.20022981,0.00014932,2]
[420052956,1775634650302,-150.0,0.00014935,2]
[420052957,1775634650311,-2129.0,0.00014937,2]
[420052958,1775634650321,-150.0,0.00014939,2]
[420052959,1775634650331,-6730.30897899,0.00014943,2]
[420052960,1775634650340,-150.0,0.00014945,2]
[420052961,1775634650350,-150.0,0.00014946,2]
[420052962,1775634650359,-150.0,0.00014947,2]
[420052963,1775634650369,-150.0,0.00014958,2]
[420052964,1775634650380,-150.0,0.00014963,2]
[420052965,1775634650389,-150.0,0.00014963,2]
[420052967,1775634650399,-150.0,0.00014969,2]
[420052969,1775634650409,-150.0,0.00014969,2]
[420052971,1775634650419,-150.0,0.0001497,2]
[420052972,1775634650428,-150.0,0.00014971,2]
[420052974,1775634650437,-150.0,0.00014981,2]
[420052976,1775634650447,-150.0,0.00014983,2]
[420052978,1775634650456,-150.0,0.00014988,2]
[420052979,1775634650466,-150.0,0.00014998,2]
[420052980,1775634650476,-300.0,0.00015,2]
[420052981,1775634650485,-160.0,0.00015,2]
[420052982,1775634650495,-150.0,0.00015001,2]
[420052983,1775634650506,-150.0,0.00015003,2]
[420052984,1775634650515,-150.0,0.00015004,2]
[420052985,1775634650525,-417.639239,0.00015018,2]
[420052986,1775634650535,-150.0,0.00015019,2]
[420052987,1775634650545,-150.0,0.00015025,2]
[420052988,1775634650555,-150.0,0.00015027,2]
[420052989,1775634650564,-150.0,0.00015029,2]
[420052990,1775634650575,-150.0,0.00015033,2]
[420052991,1775634650585,-150.0,0.00015043,2]
[420052992,1775634650594,-150.0,0.00015043,2]
[420052993,1775634650604,-150.0,0.00015043,2]
[420052994,1775634650614,-150.0,0.00015051,2]
[420052995,1775634650624,-150.0,0.00015052,2]
[420052996,1775634650633,-150.0,0.00015055,2]
[420052997,1775634650643,-930.82314799,0.00015063,2]
[420052998,1775634650654,-150.0,0.00015064,2]
[420052999,1775634650663,-150.0,0.0001507,2]
[420053000,1775634650673,-150.0,0.00015074,2]
[420053001,1775634650682,-150.0,0.00015079,2]
[420053002,1775634650692,-150.0,0.00015083,2]
[420053003,1775634650702,-150.0,0.00015083,2]
[420053004,1775634650712,-150.0,0.00015091,2]
[420053005,1775634650722,-150.0,0.00015095,2]
[420053006,1775634650731,-150.0,0.00015097,2]
[420053007,1775634650741,-150.0,0.00015106,2]
[420053008,1775634650750,-201.93286099,0.00015109,2]
[420053009,1775634650760,-200.0,0.00015109,2]
[420053010,1775634650769,-1428.38747117,0.00015109,2]
[420053011,1775634650779,-859.80605061,0.00015109,2]
[420053012,1775634650788,-150.0,0.00015111,2]
[420053013,1775634650797,-150.0,0.00015117,2]
[420053014,1775634650807,-150.0,0.00015117,2]
[420053015,1775634650817,-150.0,0.0001512,2]
[420053016,1775634650827,-150.0,0.00015123,2]
[420053017,1775634650836,-150.0,0.00015126,2]
[420053018,1775634650846,-150.0,0.00015127,2]
[420053019,1775634650856,-150.0,0.00015132,2]
[420053020,1775634650866,-150.0,0.00015144,2]
[420053021,1775634650876,-150.0,0.00015152,2]
[420053022,1775634650886,-150.0,0.00015157,2]
[420053023,1775634650896,-150.0,0.00015159,2]
[420053024,1775634650905,-150.0,0.00015163,2]
[420053025,1775634650916,-150.0,0.00015164,2]
[420053026,1775634650925,-150.0,0.00015167,2]
[420053027,1775634650935,-150.0,0.00015173,2]
[420053028,1775634650944,-150.0,0.00015186,2]
[420053029,1775634650954,-150.0,0.00015188,2]
[420053030,1775634650963,-150.0,0.0001519,2]
[420053031,1775634650972,-150.0,0.00015191,2]
[420053032,1775634650982,-150.0,0.00015191,2]
[420053033,1775634650991,-150.0,0.00015193,2]
[420053034,1775634651001,-150.0,0.000152,2]
[420053035,1775634651010,-150.0,0.00015203,2]
[420053036,1775634651019,-150.0,0.00015203,2]
[420053037,1775634651029,-150.0,0.00015213,2]
[420053038,1775634651038,-150.0,0.00015213,2]
[420053039,1775634651048,-150.0,0.00015219,2]
[420053040,1775634651057,-150.0,0.00015234,2]
[420053041,1775634651066,-150.0,0.00015236,2]
[420053042,1775634651076,-150.0,0.00015236,2]
[420053043,1775634651085,-150.0,0.0001524,2]
[420053044,1775634651095,-150.0,0.00015242,2]
[420053045,1775634651105,-150.0,0.0001525,2]
[420053046,1775634651115,-150.0,0.0001526,2]
[420053047,1775634651124,-150.0,0.00015265,2]
[420053048,1775634651133,-150.0,0.00015265,2]
[420053049,1775634651143,-150.0,0.00015267,2]
[420053050,1775634651153,-150.0,0.00015272,2]
[420053051,1775634651163,-1000.0,0.00015274,7]
[420053052,1775634651173,-150.0,0.00015275,2]
[420053053,1775634651183,-150.0,0.00015282,2]
[420053054,1775634651196,-150.0,0.00015282,2]
[420053055,1775634651205,-150.0,0.00015283,2]
[420053056,1775634651215,-150.0,0.00015293,2]
[420053057,1775634651224,-150.0,0.00015306,2]
[420053058,1775634651235,-150.0,0.00015308,2]
[420053059,1775634651245,-150.0,0.00015313,2]
[420053060,1775634651255,-150.0,0.00015316,2]
[420053061,1775634651264,-150.0,0.0001532,2]
[420053062,1775634651274,-150.0,0.00015322,2]
[420053063,1775634651283,-150.0,0.00015322,2]
[420053064,1775634651294,-150.0,0.00015329,2]
[420053065,1775634651304,-150.0,0.00015339,2]
[420053066,1775634651314,-150.0,0.00015339,2]
[420053067,1775634651324,-2000.0,0.00015342,2]
[420053068,1775634651334,-2000.0,0.00015342,2]
[420053069,1775634651343,-1951.88193642,0.00015342,2]
[420053070,1775634651353,-254.25810122,0.00015342,2]
[420053071,1775634651363,-2000.0,0.00015342,2]
[420053072,1775634651373,-2000.0,0.00015342,2]
[420053073,1775634651384,-2000.0,0.00015342,2]
[420053074,1775634651394,-2000.0,0.00015342,2]
[420053075,1775634651404,-2000.0,0.00015342,2]
[420053076,1775634651414,-150.0,0.00015344,2]
[420053077,1775634651424,-150.0,0.00015345,2]
[420053078,1775634651435,-150.0,0.00015347,2]
[420053079,1775634651445,-9035.0,0.00015352,2]
[420053080,1775634651456,-150.0,0.00015353,2]
[420053081,1775634651466,-150.0,0.00015357,2]
[420053082,1775634651475,-150.0,0.00015362,2]
[420053083,1775634651486,-150.0,0.00015374,2]
[420053084,1775634651497,-150.0,0.00015375,2]
[420053085,1775634651506,-150.0,0.00015376,2]
[420053086,1775634651516,-150.0,0.00015381,2]
[420053087,1775634651526,-150.0,0.00015398,2]
[420053088,1775634651536,-150.0,0.00015399,2]
[420053089,1775634651547,-150.0,0.00015401,2]
[420053090,1775634651557,-150.0,0.00015402,2]
[420053091,1775634651567,-1000.0,0.00015405,2]
[420053092,1775634651578,-150.0,0.00015406,2]
[420053093,1775634651588,-150.0,0.00015413,2]
[420053094,1775634651598,-150.0,0.00015413,2]
[420053095,1775634651608,-150.0,0.00015417,2]
[420053096,1775634651619,-150.0,0.00015422,2]
[420053097,1775634651629,-150.0,0.00015427,2]
[420053098,1775634651639,-150.0,0.00015437,2]
[420053099,1775634651649,-150.0,0.00015439,2]
[420053100,1775634651659,-150.0,0.00015442,2]
[420053101,1775634651668,-150.0,0.00015442,2]
[420053102,1775634651678,-150.0,0.00015446,2]
[420053103,1775634651687,-1243.0,0.00015446,3]
[420053104,1775634651697,-150.0,0.00015453,2]
[420053105,1775634651707,-150.0,0.00015454,2]
[420053106,1775634651718,-150.0,0.00015468,2]
[420053107,1775634651727,-150.0,0.00015469,2]
[420053108,1775634651736,-3034.76,0.00015471,2]
[420053109,1775634651746,-863.61,0.00015471,2]
[420053110,1775634651756,-1674.23,0.00015471,2]
[420053111,1775634651765,-152.45672918,0.00015478,2]
[420053112,1775634651775,-150.0,0.0001548,2]
[420053113,1775634651785,-150.0,0.00015481,2]
[420053114,1775634651795,-150.0,0.00015482,2]
[420053115,1775634651805,-150.0,0.00015488,2]
[420053116,1775634651815,-150.0,0.00015488,2]
[420053117,1775634651825,-150.0,0.00015489,2]
[420053118,1775634651834,-150.0,0.00015492,2]
[420053119,1775634651844,-150.0,0.00015499,2]
[420053120,1775634651854,-4000.0,0.00015507,2]
[420053121,1775634651863,-150.0,0.00015508,2]
[420053122,1775634651873,-150.0,0.00015515,2]
[420053123,1775634651883,-150.0,0.00015521,2]
[420053124,1775634651893,-150.0,0.00015522,2]
[420053125,1775634651903,-150.0,0.00015525,2]
[420053126,1775634651912,-150.0,0.00015531,2]
[420053127,1775634651922,-150.0,0.00015535,2]
[420053128,1775634651932,-150.0,0.00015538,2]
[420053129,1775634651941,-153.03603175,0.00015562,2]
[420053130,1775634651952,-254.97243642,0.00015562,2]
[420053131,1775634651961,-240.76039255,0.00015562,2]
[420053132,1775634651971,-299.8368581,0.00015562,2]
[420053133,1775634651981,-246.14760097,0.00015562,2]
[420053134,1775634651990,-257.21753865,0.00015562,2]
[420053135,1775634652001,-265.82430715,0.00015562,2]
[420053136,1775634652011,-154.96470644,0.00015562,2]
[420053137,1775634652021,-253.01547596,0.00015562,2]
[420053138,1775634652031,-235.51154759,0.00015562,2]
[420053139,1775634652040,-175.09773323,0.00015562,2]
[420053140,1775634652050,-260.08916634,0.00015562,2]